fUST/lending_fUST_20250220
["ID","MTS","AMOUNT","RATE_DAILY","PERIOD"]
[353726778,1739998262498,-500.0,0.00014602,2]
[353726779,1739998262508,-500.0,0.00014602,2]
[353726781,1739998262517,-2651.57,0.00014602,2]
[353726783,1739998262526,-530.92,0.00014602,2]
[353726786,1739998262536,-500.0,0.00014602,2]
[353726788,1739998262545,-605.78,0.00014602,2]
[353726790,1739998262555,-960.62,0.00014602,2]
[353726791,1739998262564,-520.47,0.00014602,2]
[353726794,1739998262573,-514.43,0.00014602,2]
[353726796,1739998262583,-500.0,0.00014602,2]
[353726798,1739998262592,-500.0,0.00014602,2]
[353726799,1739998262602,-556.45,0.00014602,2]
[353726801,1739998262611,-2343.02,0.00014602,2]
[353726804,1739998262621,-507.0895533,0.00014602,2]
[353726806,1739998262631,-5829.82,0.00014602,2]
[353726807,1739998262640,-2086.58,0.00014602,2]
[353726810,1739998262650,-941.7,0.00014602,2]
[353726812,1739998262659,-1298.13,0.00014602,2]
[353726814,1739998262669,-895.31,0.00014602,2]
[353726816,1739998262678,-1140.92,0.00014602,2]
[353726818,1739998262688,-2373.44,0.00014602,2]
[353726820,1739998262699,-500.0,0.00014602,2]
[353726822,1739998262708,-25588.85,0.00014602,2]
[353726824,1739998262718,-500.0,0.00014602,2]
[353726826,1739998262727,-1098.92,0.00014602,2]
[353726828,1739998262737,-642.51,0.00014602,2]
[353726830,1739998262747,-11131.15,0.00014602,2]
[353726832,1739998262756,-1481.01,0.00014602,2]
[353726834,1739998262766,-2331.82,0.00014602,2]
[353726836,1739998262776,-840.9,0.00014602,2]
[353726838,1739998262785,-1405.2,0.00014602,2]
[353726840,1739998262795,-500.0,0.00014602,2]
[353726842,1739998262805,-1355.31,0.00014602,2]
[353726844,1739998262814,-2081.89,0.00014602,2]
[353726846,1739998262823,-1273.09,0.00014602,2]
[353726848,1739998262833,-451.71,0.00014602,2]
[353726850,1739998262842,-500.0,0.00014602,2]
[353726852,1739998262852,-3658.91,0.00014602,2]
[353726854,1739998262862,-500.0,0.00014602,2]
[353726856,1739998262872,-500.0,0.00014602,2]
[353726858,1739998262884,-1053.16,0.00014602,2]
[353726860,1739998262895,-559.97,0.00014602,2]
[353726862,1739998262904,-558.31,0.00014602,2]
[353726864,1739998262914,-500.0,0.00014602,2]
[353726866,1739998262923,-597.41,0.00014602,2]
[353726868,1739998262935,-500.0,0.00014602,2]
[353726870,1739998262944,-2610.53,0.00014602,2]
[353726872,1739998262958,-1417.44,0.00014602,2]
[353726874,1739998262968,-1045.6,0.00014602,2]
[353726876,1739998262978,-1307.94,0.00014602,2]
[353726878,1739998262987,-423.45,0.00014684,2]
[353726880,1739998262996,-509.18,0.00014684,2]
[353726882,1739998263005,-735.72,0.00014684,2]
[353726884,1739998263015,-503.31,0.00014684,2]
[353726886,1739998263025,-645.29394927,0.00014684,2]
[353726888,1739998263036,-500.0,0.00014684,2]
[353726890,1739998263046,-500.0,0.00014684,2]
[353726892,1739998263057,-532.29,0.00014684,2]
[353726894,1739998263069,-384.42,0.00014684,2]
[353726896,1739998263079,-770.11,0.00014684,2]
[353726898,1739998263089,-500.0,0.00014684,2]
[353726900,1739998263099,-500.0,0.00014684,2]
[353726902,1739998263109,-724.13,0.00014684,2]
[353726904,1739998263119,-500.0,0.00014684,2]
[353726906,1739998263129,-500.0,0.00014684,2]
[353726908,1739998263139,-500.0,0.00014684,2]
[353726910,1739998263149,-686.46,0.00014684,2]
[353726912,1739998263159,-8858.9,0.00014684,2]
[353726914,1739998263169,-584.99,0.00014684,2]
[353726916,1739998263179,-826.72,0.00014684,2]
[353726918,1739998263190,-823.17,0.00014684,2]
[353726920,1739998263203,-974.98,0.00014684,2]
[353726922,1739998263213,-547.17,0.00014684,2]
[353726924,1739998263223,-500.0,0.00014684,2]
[353726926,1739998263232,-2651.57,0.00014684,2]
[353726928,1739998263243,-530.92,0.00014684,2]
[353726930,1739998263253,-500.0,0.00014684,2]
[353726932,1739998263263,-605.78,0.00014684,2]
[353726934,1739998263272,-960.62,0.00014684,2]
[353726936,1739998263283,-520.47,0.00014684,2]
[353726938,1739998263293,-514.43,0.00014684,2]
[353726941,1739998263307,-500.0,0.00014684,2]
[353726943,1739998263318,-500.0,0.00014684,2]
[353726945,1739998263327,-556.45,0.00014684,2]
[353726947,1739998263336,-2343.02,0.00014684,2]
[353726949,1739998263346,-5829.82,0.00014684,2]
[353726951,1739998263356,-2086.58,0.00014684,2]
[353726953,1739998263366,-941.7,0.00014684,2]
[353726955,1739998263376,-1298.13,0.00014684,2]
[353726957,1739998263385,-895.31,0.00014684,2]
[353726959,1739998263395,-1140.92,0.00014684,2]
[353726961,1739998263405,-2373.44,0.00014684,2]
[353726963,1739998263415,-500.0,0.00014684,2]
[353726965,1739998263424,-25588.85,0.00014684,2]
[353726967,1739998263434,-500.0,0.00014684,2]
[353726969,1739998263448,-1098.92,0.00014684,2]
[353726971,1739998263459,-642.51,0.00014684,2]
[353726973,1739998263470,-11131.15,0.00014684,2]
[353726975,1739998263481,-1481.01,0.00014684,2]
[353726977,1739998263491,-2331.82,0.00014684,2]
[353726980,1739998263502,-840.9,0.00014684,2]
[353726982,1739998263512,-1405.2,0.00014684,2]
[353726984,1739998263522,-548.98622033,0.00014684,2]
[353726986,1739998263533,-1355.31,0.00014684,2]
[353726988,1739998263543,-2081.89,0.00014684,2]
[353726990,1739998263553,-1273.09,0.00014684,2]
[353726992,1739998263565,-500.0,0.00014684,2]
[353726994,1739998263576,-3658.91,0.00014684,2]
[353726996,1739998263586,-500.0,0.00014684,2]
[353726998,1739998263597,-500.0,0.00014684,2]
[353727000,1739998263608,-1053.16,0.00014684,2]
[353727010,1739998263710,-559.97,0.00014684,2]
[353727012,1739998263720,-558.31,0.00014684,2]
[353727014,1739998263731,-500.0,0.00014684,2]
[353727016,1739998263742,-461.14,0.00014684,2]
[353727017,1739998263753,-2610.53,0.00014684,2]
[353727019,1739998263764,-1417.44,0.00014684,2]
[353727021,1739998263774,-1045.6,0.00014684,2]
[353727023,1739998263784,-1307.94,0.00014684,2]
[353727024,1739998263794,-151.0,0.000147,2]
[353727026,1739998263804,-902.661,0.0001475,2]
[353727028,1739998263814,-169.481,0.0001475,2]
[353727029,1739998263824,-509.18,0.00014767,2]
[353727031,1739998263834,-735.72,0.00014767,2]
[353727033,1739998263846,-503.31,0.00014767,2]
[353727034,1739998263857,-500.0,0.00014767,2]
[353727036,1739998263867,-500.0,0.00014767,2]
[353727038,1739998263879,-532.29,0.00014767,2]
[353727040,1739998263894,-770.11,0.00014767,2]
[353727042,1739998263905,-500.0,0.00014767,2]
[353727044,1739998263915,-500.0,0.00014767,2]
[353727045,1739998263927,-724.13,0.00014767,2]
[353727047,1739998263937,-500.0,0.00014767,2]
[353727049,1739998263949,-500.0,0.00014767,2]
[353727050,1739998263962,-500.0,0.00014767,2]
[353727052,1739998263973,-686.46,0.00014767,2]
[353727054,1739998263984,-8858.9,0.00014767,2]
[353727056,1739998263995,-584.99,0.00014767,2]
[353727057,1739998264007,-826.72,0.00014767,2]
[353727059,1739998264018,-823.17,0.00014767,2]
[353727061,1739998264032,-974.98,0.00014767,2]
[353727063,1739998264043,-500.0,0.00014767,2]
[353727064,1739998264054,-2651.57,0.00014767,2]
[353727066,1739998264066,-530.92,0.00014767,2]
[353727068,1739998264077,-500.0,0.00014767,2]
[353727069,1739998264087,-605.78,0.00014767,2]
[353727071,1739998264098,-960.62,0.00014767,2]
[353727073,1739998264109,-520.47,0.00014767,2]
[353727074,1739998264119,-514.43,0.00014767,2]
[353727076,1739998264130,-500.0,0.00014767,2]
[353727078,1739998264141,-500.0,0.00014767,2]
[353727080,1739998264152,-556.45,0.00014767,2]
[353727082,1739998264163,-2343.02,0.00014767,2]
[353727083,1739998264174,-5829.82,0.00014767,2]
[353727085,1739998264185,-2086.58,0.00014767,2]
[353727087,1739998264195,-941.7,0.00014767,2]
[353727089,1739998264208,-1298.13,0.00014767,2]
[353727091,1739998264218,-895.31,0.00014767,2]
[353727092,1739998264228,-1140.92,0.00014767,2]
[353727094,1739998264238,-2373.44,0.00014767,2]
[353727096,1739998264248,-500.0,0.00014767,2]
[353727098,1739998264259,-25588.85,0.00014767,2]
[353727099,1739998264270,-500.0,0.00014767,2]
[353727101,1739998264282,-1098.92,0.00014767,2]
[353727103,1739998264292,-642.51,0.00014767,2]
[353727105,1739998264301,-11131.15,0.00014767,2]
[353727107,1739998264312,-1481.01,0.00014767,2]
[353727109,1739998264322,-2331.82,0.00014767,2]
[353727110,1739998264332,-840.9,0.00014767,2]
[353727112,1739998264342,-1405.2,0.00014767,2]
[353727114,1739998264352,-1355.31,0.00014767,2]
[353727116,1739998264362,-2081.89,0.00014767,2]
[353727118,1739998264373,-1273.09,0.00014767,2]
[353727119,1739998264382,-375.94,0.00014767,2]
[353727121,1739998264392,-3658.91,0.00014767,2]
[353727123,1739998264401,-500.0,0.00014767,2]
[353727125,1739998264411,-500.0,0.00014767,2]
[353727127,1739998264421,-1053.16,0.00014767,2]
[353727128,1739998264430,-559.97,0.00014767,2]
[353727130,1739998264440,-558.31,0.00014767,2]
[353727132,1739998264451,-500.0,0.00014767,2]
[353727134,1739998264462,-2610.53,0.00014767,2]
[353727135,1739998264472,-1417.44,0.00014767,2]
[353727137,1739998264481,-1045.6,0.00014767,2]
[353727139,1739998264492,-1307.94,0.00014767,2]
[353727141,1739998264503,-1000.50517202,0.00014795,2]
[353727143,1739998264512,-509.18,0.00014849,2]
[353727145,1739998264523,-735.72,0.00014849,2]
[353727146,1739998264533,-503.31,0.00014849,2]
[353727148,1739998264543,-500.0,0.00014849,2]
[353727150,1739998264552,-500.0,0.00014849,2]
[353727152,1739998264563,-532.29,0.00014849,2]
[353727154,1739998264572,-770.11,0.00014849,2]
[353727155,1739998264582,-500.0,0.00014849,2]
[353727157,1739998264591,-500.0,0.00014849,2]
[353727159,1739998264603,-724.13,0.00014849,2]
[353727161,1739998264613,-500.0,0.00014849,2]
[353727163,1739998264623,-500.0,0.00014849,2]
[353727165,1739998264632,-500.0,0.00014849,2]
[353727166,1739998264644,-686.46,0.00014849,2]
[353727168,1739998264653,-8858.9,0.00014849,2]
[353727170,1739998264663,-584.99,0.00014849,2]
[353727172,1739998264673,-826.72,0.00014849,2]
[353727174,1739998264683,-823.17,0.00014849,2]
[353727175,1739998264692,-974.98,0.00014849,2]
[353727177,1739998264703,-500.0,0.00014849,2]
[353727179,1739998264711,-2651.57,0.00014849,2]
[353727181,1739998264721,-530.92,0.00014849,2]
[353727183,1739998264730,-500.0,0.00014849,2]
[353727184,1739998264740,-605.78,0.00014849,2]
[353727186,1739998264749,-960.62,0.00014849,2]
[353727188,1739998264759,-520.47,0.00014849,2]
[353727190,1739998264769,-514.43,0.00014849,2]
[353727192,1739998264779,-500.0,0.00014849,2]
[353727194,1739998264790,-500.0,0.00014849,2]
[353727195,1739998264799,-556.45,0.00014849,2]
[353727197,1739998264808,-2343.02,0.00014849,2]
[353727199,1739998264818,-5829.82,0.00014849,2]
[353727201,1739998264829,-2086.58,0.00014849,2]
[353727203,1739998264838,-941.7,0.00014849,2]
[353727205,1739998264849,-1298.13,0.00014849,2]
[353727206,1739998264859,-895.31,0.00014849,2]
[353727208,1739998264868,-1140.92,0.00014849,2]
[353727210,1739998264879,-2373.44,0.00014849,2]
[353727212,1739998264890,-25588.85,0.00014849,2]
[353727214,1739998264899,-500.0,0.00014849,2]
[353727215,1739998264909,-500.0,0.00014849,2]
[353727217,1739998264919,-1098.92,0.00014849,2]
[353727219,1739998264929,-642.51,0.00014849,2]
[353727221,1739998264939,-11131.15,0.00014849,2]
[353727223,1739998264949,-1481.01,0.00014849,2]
[353727224,1739998264961,-2331.82,0.00014849,2]
[353727226,1739998264972,-840.9,0.00014849,2]
[353727228,1739998264982,-1405.2,0.00014849,2]
[353727230,1739998264991,-1355.31,0.00014849,2]
[353727232,1739998265001,-2081.89,0.00014849,2]
[353727234,1739998265011,-1273.09,0.00014849,2]
[353727236,1739998265021,-3658.91,0.00014849,2]
[353727237,1739998265031,-612.63821157,0.00014849,2]
[353727239,1739998265040,-500.0,0.00014849,2]
[353727241,1739998265051,-1053.16,0.00014849,2]
[353727243,1739998265066,-559.97,0.00014849,2]
[353727245,1739998265081,-558.31,0.00014849,2]
[353727247,1739998265091,-500.0,0.00014849,2]
[353727248,1739998265100,-2610.53,0.00014849,2]
[353727250,1739998265111,-1417.44,0.00014849,2]
[353727252,1739998265122,-1045.6,0.00014849,2]
[353727254,1739998265131,-1307.94,0.00014849,2]
[353727256,1739998265141,-690621.276692,0.000149,2]
[353727258,1739998265150,-509.18,0.00014931,2]
[353727259,1739998265160,-735.72,0.00014931,2]
[353727261,1739998265170,-503.31,0.00014931,2]
[353727263,1739998265181,-500.0,0.00014931,2]
[353727265,1739998265190,-500.0,0.00014931,2]
[353727267,1739998265202,-532.29,0.00014931,2]
[353727269,1739998265211,-770.11,0.00014931,2]
[353727270,1739998265221,-500.0,0.00014931,2]
[353727272,1739998265231,-500.0,0.00014931,2]
[353727274,1739998265240,-724.13,0.00014931,2]
[353727276,1739998265249,-500.0,0.00014931,2]
[353727278,1739998265259,-500.0,0.00014931,2]
[353727279,1739998265268,-626.62987979,0.00014931,2]
[353727281,1739998265278,-686.46,0.00014931,2]
[353727283,1739998265288,-8858.9,0.00014931,2]
[353727285,1739998265297,-584.99,0.00014931,2]
[353727287,1739998265307,-826.72,0.00014931,2]
[353727289,1739998265316,-823.17,0.00014931,2]
[353727290,1739998265325,-974.98,0.00014931,2]
[353727292,1739998265335,-500.0,0.00014931,2]
[353727294,1739998265344,-2651.57,0.00014931,2]
[353727296,1739998265353,-530.92,0.00014931,2]
[353727298,1739998265363,-500.0,0.00014931,2]
[353727299,1739998265373,-605.78,0.00014931,2]
[353727301,1739998265382,-960.62,0.00014931,2]
[353727303,1739998265392,-520.47,0.00014931,2]
[353727305,1739998265401,-514.43,0.00014931,2]
[353727307,1739998265411,-532.19970288,0.00014931,2]
[353727308,1739998265420,-500.0,0.00014931,2]
[353727310,1739998265429,-556.45,0.00014931,2]
[353727312,1739998265439,-2343.02,0.00014931,2]
[353727314,1739998265448,-5829.82,0.00014931,2]
[353727316,1739998265458,-2086.58,0.00014931,2]
[353727317,1739998265467,-941.7,0.00014931,2]
[353727319,1739998265477,-1298.13,0.00014931,2]
[353727321,1739998265486,-895.31,0.00014931,2]
[353727323,1739998265495,-1140.92,0.00014931,2]
[353727325,1739998265504,-2373.44,0.00014931,2]
[353727327,1739998265514,-25588.85,0.00014931,2]
[353727328,1739998265524,-500.0,0.00014931,2]
[353727330,1739998265533,-500.0,0.00014931,2]
[353727332,1739998265543,-1098.92,0.00014931,2]
[353727334,1739998265552,-642.51,0.00014931,2]
[353727336,1739998265561,-11131.15,0.00014931,2]
[353727337,1739998265571,-1481.01,0.00014931,2]
[353727339,1739998265580,-2331.82,0.00014931,2]
[353727341,1739998265590,-840.9,0.00014931,2]
[353727343,1739998265600,-1405.2,0.00014931,2]
[353727345,1739998265610,-1355.31,0.00014931,2]
[353727347,1739998265620,-2081.89,0.00014931,2]
[353727348,1739998265629,-1273.09,0.00014931,2]
[353727350,1739998265638,-3658.91,0.00014931,2]
[353727352,1739998265647,-391.20026402,0.00014931,2]
[353727354,1739998265657,-1053.16,0.00014931,2]
[353727355,1739998265665,-559.97,0.00014931,2]
[353727357,1739998265675,-558.31,0.00014931,2]
[353727359,1739998265685,-500.0,0.00014931,2]
[353727361,1739998265694,-2610.53,0.00014931,2]
[353727363,1739998265705,-1417.44,0.00014931,2]
[353727364,1739998265715,-1045.6,0.00014931,2]
[353727366,1739998265724,-1307.94,0.00014931,2]
[353727368,1739998265734,-466.97427313,0.00015008,2]
[353727370,1739998265743,-509.18,0.00015013,2]
[353727372,1739998265752,-735.72,0.00015013,2]
[353727373,1739998265762,-503.31,0.00015013,2]
[353727375,1739998265772,-500.0,0.00015013,2]
[353727376,1739998265783,-446.50592814,0.00015013,2]
[353727377,1739998265794,-532.29,0.00015013,2]
[353727378,1739998265804,-770.11,0.00015013,2]
[353727379,1739998265814,-500.0,0.00015013,2]
[353727380,1739998265824,-500.0,0.00015013,2]
[353727381,1739998265834,-724.13,0.00015013,2]
[353727382,1739998265844,-500.0,0.00015013,2]
[353727383,1739998265855,-647.51481865,0.00015013,2]
[353727384,1739998265865,-686.46,0.00015013,2]
[353727385,1739998265877,-8858.9,0.00015013,2]
[353727386,1739998265891,-584.99,0.00015013,2]
[353727387,1739998265902,-826.72,0.00015013,2]
[353727388,1739998265913,-823.17,0.00015013,2]
[353727389,1739998265925,-974.98,0.00015013,2]
[353727390,1739998265936,-500.0,0.00015013,2]
[353727391,1739998265946,-2651.57,0.00015013,2]
[353727392,1739998265960,-530.92,0.00015013,2]
[353727393,1739998265970,-500.0,0.00015013,2]
[353727394,1739998265983,-605.78,0.00015013,2]
[353727395,1739998265994,-960.62,0.00015013,2]
[353727396,1739998266004,-520.47,0.00015013,2]
[353727397,1739998266015,-514.43,0.00015013,2]
[353727399,1739998266025,-500.0,0.00015013,2]
[353727401,1739998266035,-556.45,0.00015013,2]
[353727403,1739998266045,-2343.02,0.00015013,2]
[353727405,1739998266056,-5829.82,0.00015013,2]
[353727407,1739998266067,-2086.58,0.00015013,2]
[353727409,1739998266078,-941.7,0.00015013,2]
[353727411,1739998266088,-1298.13,0.00015013,2]
[353727413,1739998266098,-895.31,0.00015013,2]
[353727415,1739998266108,-1140.92,0.00015013,2]
[353727417,1739998266118,-2373.44,0.00015013,2]
[353727419,1739998266128,-25588.85,0.00015013,2]
[353727421,1739998266138,-500.0,0.00015013,2]
[353727423,1739998266148,-500.0,0.00015013,2]
[353727425,1739998266157,-1098.92,0.00015013,2]
[353727427,1739998266167,-642.51,0.00015013,2]
[353727429,1739998266177,-11131.15,0.00015013,2]
[353727431,1739998266187,-1481.01,0.00015013,2]
[353727433,1739998266197,-2331.82,0.00015013,2]
[353727435,1739998266210,-840.9,0.00015013,2]
[353727437,1739998266220,-1405.2,0.00015013,2]
[353727439,1739998266230,-1355.31,0.00015013,2]
[353727441,1739998266241,-2081.89,0.00015013,2]
[353727443,1739998266251,-1273.09,0.00015013,2]
[353727445,1739998266263,-3658.91,0.00015013,2]
[353727447,1739998266274,-1053.16,0.00015013,2]
[353727459,1739998266369,-559.97,0.00015013,2]
[353727461,1739998266390,-558.31,0.00015013,2]
[353727463,1739998266400,-500.0,0.00015013,2]
[353727464,1739998266410,-2610.53,0.00015013,2]
[353727467,1739998266420,-1417.44,0.00015013,2]
[353727469,1739998266431,-1045.6,0.00015013,2]
[353727471,1739998266440,-1307.94,0.00015013,2]
[353727472,1739998266450,-509.18,0.00015095,2]
[353727474,1739998266461,-735.72,0.00015095,2]
[353727477,1739998266471,-503.31,0.00015095,2]
[353727479,1739998266481,-500.0,0.00015095,2]
[353727480,1739998266491,-532.29,0.00015095,2]
[353727483,1739998266500,-770.11,0.00015095,2]
[353727485,1739998266511,-169.86191629,0.00015095,2]
[353727487,1739998266521,-500.0,0.00015095,2]
[353727489,1739998266530,-724.13,0.00015095,2]
[353727491,1739998266539,-500.0,0.00015095,2]
[353727493,1739998266549,-686.46,0.00015095,2]
[353727495,1739998266559,-8858.9,0.00015095,2]
[353727497,1739998266569,-584.99,0.00015095,2]
[353727499,1739998266579,-826.72,0.00015095,2]
[353727501,1739998266589,-823.17,0.00015095,2]
[353727503,1739998266599,-974.98,0.00015095,2]
[353727505,1739998266609,-500.0,0.00015095,2]
[353727507,1739998266618,-2651.57,0.00015095,2]
[353727509,1739998266628,-530.92,0.00015095,2]
[353727511,1739998266638,-500.0,0.00015095,2]
[353727513,1739998266647,-605.78,0.00015095,2]
[353727515,1739998266657,-960.62,0.00015095,2]
[353727517,1739998266667,-520.47,0.00015095,2]
[353727519,1739998266677,-514.43,0.00015095,2]
[353727521,1739998266687,-500.0,0.00015095,2]
[353727523,1739998266696,-556.45,0.00015095,2]
[353727525,1739998266707,-2343.02,0.00015095,2]
[353727527,1739998266717,-5829.82,0.00015095,2]
[353727529,1739998266727,-2086.58,0.00015095,2]
[353727531,1739998266737,-941.7,0.00015095,2]
[353727533,1739998266746,-1298.13,0.00015095,2]
[353727535,1739998266755,-895.31,0.00015095,2]
[353727537,1739998266764,-1140.92,0.00015095,2]
[353727539,1739998266773,-2373.44,0.00015095,2]
[353727541,1739998266783,-25588.85,0.00015095,2]
[353727543,1739998266792,-500.0,0.00015095,2]
[353727545,1739998266801,-500.0,0.00015095,2]
[353727547,1739998266811,-1098.92,0.00015095,2]
[353727549,1739998266820,-642.51,0.00015095,2]
[353727551,1739998266829,-11131.15,0.00015095,2]
[353727553,1739998266838,-1481.01,0.00015095,2]
[353727555,1739998266847,-2331.82,0.00015095,2]
[353727557,1739998266857,-840.9,0.00015095,2]
[353727559,1739998266866,-1405.2,0.00015095,2]
[353727561,1739998266876,-1355.31,0.00015095,2]
[353727563,1739998266888,-2081.89,0.00015095,2]
[353727565,1739998266897,-1273.09,0.00015095,2]
[353727567,1739998266907,-3658.91,0.00015095,2]
[353727569,1739998266919,-1053.16,0.00015095,2]
[353727571,1739998266928,-559.97,0.00015095,2]
[353727573,1739998266938,-558.31,0.00015095,2]
[353727575,1739998266947,-500.0,0.00015095,2]
[353727577,1739998266957,-2610.53,0.00015095,2]
[353727579,1739998266969,-1417.44,0.00015095,2]
[353727581,1739998266979,-1045.6,0.00015095,2]
[353727583,1739998266988,-1307.94,0.00015095,2]
[353727585,1739998266998,-509.18,0.00015178,2]
[353727587,1739998267007,-735.72,0.00015178,2]
[353727589,1739998267016,-503.31,0.00015178,2]
[353727591,1739998267026,-500.0,0.00015178,2]
[353727593,1739998267036,-532.29,0.00015178,2]
[353727595,1739998267045,-770.11,0.00015178,2]
[353727597,1739998267054,-500.0,0.00015178,2]
[353727599,1739998267064,-724.13,0.00015178,2]
[353727601,1739998267073,-500.0,0.00015178,2]
[353727603,1739998267083,-686.46,0.00015178,2]
[353727605,1739998267093,-8858.9,0.00015178,2]
[353727607,1739998267103,-584.99,0.00015178,2]
[353727610,1739998267112,-826.72,0.00015178,2]
[353727612,1739998267122,-823.17,0.00015178,2]
[353727613,1739998267131,-974.98,0.00015178,2]
[353727615,1739998267140,-500.0,0.00015178,2]
[353727617,1739998267150,-2651.57,0.00015178,2]
[353727620,1739998267159,-530.92,0.00015178,2]
[353727622,1739998267170,-500.0,0.00015178,2]
[353727624,1739998267183,-605.78,0.00015178,2]
[353727626,1739998267192,-960.62,0.00015178,2]
[353727628,1739998267203,-520.47,0.00015178,2]
[353727630,1739998267213,-514.43,0.00015178,2]
[353727632,1739998267222,-500.0,0.00015178,2]
[353727634,1739998267232,-556.45,0.00015178,2]
[353727636,1739998267241,-2343.02,0.00015178,2]
[353727638,1739998267250,-5829.82,0.00015178,2]
[353727640,1739998267260,-2086.58,0.00015178,2]
[353727642,1739998267269,-941.7,0.00015178,2]
[353727644,1739998267279,-1298.13,0.00015178,2]
[353727646,1739998267288,-895.31,0.00015178,2]
[353727648,1739998267298,-1140.92,0.00015178,2]
[353727650,1739998267307,-2373.44,0.00015178,2]
[353727652,1739998267316,-25588.85,0.00015178,2]
[353727654,1739998267327,-598.75986233,0.00015178,2]
[353727655,1739998267337,-500.0,0.00015178,2]
[353727657,1739998267347,-1098.92,0.00015178,2]
[353727660,1739998267357,-642.51,0.00015178,2]
[353727661,1739998267367,-2527.66259007,0.00015178,2]
[353727708,1739998267822,-500.0,0.00013698,2]
[353727710,1739998267832,-500.0,0.00013698,2]
[353727712,1739998267842,-500.0,0.0001378,2]
[353727714,1739998267852,-500.0,0.0001378,2]
[353727716,1739998267861,-500.0,0.00013863,2]
[353727718,1739998267870,-500.0,0.00013863,2]
[353727719,1739998267882,-500.0,0.00013945,2]
[353727722,1739998267892,-8603.48740993,0.00015178,2]
[353727724,1739998267902,-1481.01,0.00015178,2]
[353727725,1739998267911,-2331.82,0.00015178,2]
[353727727,1739998267921,-840.9,0.00015178,2]
[353727729,1739998267931,-1405.2,0.00015178,2]
[353727732,1739998267940,-1355.31,0.00015178,2]
[353727734,1739998267950,-2081.89,0.00015178,2]
[353727736,1739998267964,-1273.09,0.00015178,2]
[353727738,1739998267974,-3658.91,0.00015178,2]
[353727740,1739998267984,-1053.16,0.00015178,2]
[353727742,1739998267993,-559.97,0.00015178,2]
[353727744,1739998268002,-558.31,0.00015178,2]
[353727746,1739998268011,-500.0,0.00015178,2]
[353727748,1739998268022,-2610.53,0.00015178,2]
[353727750,1739998268031,-1417.44,0.00015178,2]
[353727752,1739998268040,-1045.6,0.00015178,2]
[353727754,1739998268049,-1307.94,0.00015178,2]
[353727756,1739998268059,-509.18,0.0001526,2]
[353727758,1739998268068,-735.72,0.0001526,2]
[353727760,1739998268077,-503.31,0.0001526,2]
[353727762,1739998268087,-500.0,0.0001526,2]
[353727764,1739998268096,-532.29,0.0001526,2]
[353727766,1739998268106,-770.11,0.0001526,2]
[353727768,1739998268115,-500.0,0.0001526,2]
[353727770,1739998268125,-724.13,0.0001526,2]
[353727771,1739998268135,-500.0,0.0001526,2]
[353727772,1739998268145,-686.46,0.0001526,2]
[353727773,1739998268154,-8858.9,0.0001526,2]
[353727774,1739998268163,-584.99,0.0001526,2]